[Event "KAZ Cup Women 2019"]
[Site "Almaty"]
[Date "2019.12.13"]
[Round "2.4"]
[White "Gvetadze, Sofio"]
[Black "Khomeriki, Nino"]
[Result "1/2-1/2"]
[ECO "C49"]
[WhiteElo "2301"]
[BlackElo "2355"]
[Annotator "NA RC"]
[PlyCount "139"]
[EventDate "2019.12.12"]
[EventType "tourn"]
[EventCountry "KAZ"]
[SourceTitle "playchess.com"]
[Source "ChessBase"]
[SourceQuality "1"]
[TimeControl "40/5400+30:1800+30"]

{[%evp 8,88,20,1,13,3,32767,32767,15,32767,17,32767,32767,39,38,32767,32767,32767,7,32767,9,0,21,0,0,0,56,0,0,-25,0,-22,22,0,7,-8,-6,-41,-25,-44,-12,-41,-33,-79,-16,-96,-88,-141,32767,-166,-173,32767,32767,-160,32767,-127,32767,-73,32767,32767,32767,32767,32767,-109,160,-187,165,156,165,108,148,22,21,24,21,29,28,27,29,26,26,21,26]} 1. e4 {[%emt 0:01:31]} e5 {[%emt 0:00:29]} 2. Nf3 {[%emt 0:00:09]} Nc6 {[%emt 0:00:06]} 3. Nc3 {[%emt 0:00:12]} Nf6 {[%emt 0:00:20]} 4. Bb5 {[%emt 0:00:07]} Bb4 {[%emt 0:00:43]} 5. O-O {[%emt 0:00:09]} O-O {[%emt 0:00:24]} 6. d3 {[%emt 0:00:06]} d6 {[%emt 0:00:47]} 7. Bg5 Bxc3 {[%emt 0:00:50]} 8. bxc3 {[%emt 0:00:17]} Bg4 (8... h6 $5 {[%cal Rh6g5]} 9. Be3 Ne7 $11) 9. h3 {[%emt 0:00:32]} Bh5 {[%emt 0:01:09]} 10. g4 {[%emt 0:00:56]} Bg6 {[%emt 0:00:08]} 11. Bxc6 {[%emt 0:00:05]} bxc6 {[%emt 0:00:05]} 12. Rb1 {[%emt 0:00:27] C49: Four Knights: 4 Bb5 Bb4} (12. Nd2 h6 13. Bh4 Bh7 14. Nc4 Qe7 15. Qf3 {½-½ (15) Smeets,J (2593)-Werle,J (2591) London 2008}) 12... Qe7 {[%emt 0:06:49]} 13. Qe2 $146 {[%emt 0:15:31]} ({Predecessor:} 13. c4 Qe6 14. Nd2 h5 15. f3 Rab8 16. Rb3 Rxb3 17. cxb3 Kh7 18. Kg2 Rh8 19. Rh1 d5 20. cxd5 cxd5 {½-½ (41) Michalko,P (1508)-Turkova,K (1604) Tatranska Lesna 2006}) 13... Rab8 {[%emt 0:02:37]} 14. a4 {[%emt 0:16:01]} Qe6 {[%emt 0:03:07]} 15. Bxf6 {[%emt 0:04:43]} Qxf6 {[%emt 0:00:37]} 16. Qe3 {[%emt 0:00:56]} a6 {[%emt 0:03:33]} ({Better is} 16... c5 $11) 17. Kg2 {[%emt 0:00:45]} c5 {[%emt 0:00:13]} 18. Rb3 {[%emt 0:15:26]} Qe7 {[%emt 0:04:10]} 19. Rfb1 {[%emt 0:00:54]} Rbc8 {[%emt 0:00:33]} 20. c4 {[%emt 0:00:39]} f6 {[%emt 0:08:08]} 21. a5 {[%emt 0:05:14]} Be8 {[%emt 0:01:29]} 22. Ng1 {[%emt 0:05:30]} Bc6 {[%emt 0:06:24]} 23. f3 {[%emt 0:00:24]} g6 {[%emt 0:00:15]} 24. Ne2 {[%emt 0:07:05]} f5 {[%emt 0:03:03]} 25. Kh2 {[%emt 0:00:19]} (25. Nc3 $11 {keeps the balance.}) 25... fxg4 {[%emt 0:01:00]} (25... Ba4 $17 26. R3b2 fxe4 27. Qxe4 Kg7) 26. fxg4 {[%emt 0:00:13]} (26. hxg4 $11 Bd7 27. Kg2) 26... Qh4 {[%emt 0:06:16]} 27. Ng3 {[%emt 0:03:54]} (27. Kg2 $142) 27... h5 {[%emt 0:09:32]} 28. gxh5 {[%emt 0:01:42] [#]} Bd7 $1 {[%emt 0:00:14]} 29. Nh1 {[%emt 0:00:31]} Qxh5 {[%emt 0:01:26]} 30. Rg1 {[%emt 0:14:37]} Kg7 {[%emt 0:28:09]} 31. Rg3 {[%emt 0:06:17]} Rf7 {[%emt 0:02:38]} 32. Rb7 {[%emt 0:01:34]} Bc6 {[%emt 0:04:23]} 33. Rb1 {[%emt 0:00:11]} Rcf8 {[%emt 0:00:43]} 34. Rbg1 {[%emt 0:00:14]} Rf3 {[%emt 0:03:18]} 35. Rxg6+ {[%emt 0:11:46]} (35. Rxf3 $11 Qxf3 36. Qxf3 Rxf3 37. Kg2) 35... Kh7 $2 {[%emt 0:05:45]} (35... Qxg6 $17 {stays on course.} 36. Rxg6+ Kxg6 37. Qg1+ Kf7) 36. Rg7+ {[%emt 0:00:05]} Kh8 {[%emt 0:00:01]} 37. Ng3 {[%emt 0:00:09]} Rxe3 {[%emt 0:01:34]} 38. Nxh5 {[%emt 0:00:09]} Be8 {[%emt 0:00:13] [#]} 39. R7g5 {[%emt 0:05:17]} (39. Ng3 $1 $16) 39... Rf2+ $1 {[%emt 0:00:13]} 40. R1g2 {[%emt 0:00:09]} Rxg2+ {[%emt 0:00:12]} 41. Kxg2 {[%emt 0:30:05]} Re2+ {[%emt 0:30:12]} 42. Kf3 {[%emt 0:01:18]} Rxc2 {[%emt 0:00:13]} 43. Nf6 {[%emt 0:00:08]} Bf7 {[%emt 0:00:04]} 44. h4 Rd2 $11 {[%emt 0:00:00]} 45. Ke3 {[%emt 0:00:00]} Rh2 {[%emt 0:00:00]} 46. h5 Rh3+ 47. Kd2 {[%emt 0:00:00]} Rf3 {[%emt 0:00:00]} 48. Rf5 {[%emt 0:00:00]} Rh3 {[%emt 0:00:00]} 49. Nd7 {[%emt 0:00:00]} Be6 {[%emt 0:00:00]} 50. Rf8+ {[%emt 0:00:00]} Kg7 {[%emt 0:00:00]} 51. Rc8 {[%emt 0:00:00]} Rf3 {[%emt 0:00:00]} 52. Rd8 {[%emt 0:02:42]} Bxd7 {[%emt 0:03:05]} 53. Rxd7+ {[%emt 0:00:05]} Rf7 {[%emt 0:00:03]} 54. Rd8 {[%emt 0:00:26]} Kh6 {[%emt 0:00:04]} 55. Rh8+ {[%emt 0:00:36]} Rh7 {[%emt 0:00:14]} 56. Ra8 {[%emt 0:00:19]} Kxh5 {[%emt 0:00:04]} 57. Rxa6 {[%emt 0:00:04]} Kg6 {[%emt 0:00:13]} 58. Ra8 {[%emt 0:00:28]} Kf6 {[%emt 0:00:16]} 59. Kc3 {[%emt 0:02:05]} Rh1 {[%emt 0:00:37]} 60. Kb2 {[%emt 0:00:14]} Rh2+ {[%emt 0:00:27]} 61. Kb3 {[%emt 0:00:27]} Rh1 {[%emt 0:00:39]} 62. Ka4 {[%emt 0:00:40]} Ke6 {[%emt 0:02:24]} 63. Rg8 {[%emt 0:02:11]} Kd7 {[%emt 0:03:47]} 64. Kb5 {[%emt 0:00:19]} Rb1+ {[%emt 0:00:06]} 65. Ka6 {[%emt 0:00:08]} Rb3 {[%emt 0:00:25]} 66. Rg3 {[%emt 0:00:41]} Ra3 {[%emt 0:00:39]} 67. Kb5 {[%emt 0:00:46]} Rb3+ {[%emt 0:00:13]} 68. Ka6 {[%emt 0:00:21]} Ra3 {[%emt 0:00:04]} 69. Kb5 {[%emt 0:00:10]} Rb3+ {[%emt 0:00:40]} 70. Ka6 {[%emt 0:01:18]} 1/2-1/2

[Event "KAZ Cup Women 2019"]
[Site "Almaty"]
[Date "2019.12.13"]
[Round "2.5"]
[White "Tomilova, Elena"]
[Black "Davletbayeva, Madina"]
[Result "1-0"]
[ECO "A46"]
[WhiteElo "2341"]
[BlackElo "2238"]
[Annotator "RC"]
[PlyCount "73"]
[EventDate "2019.12.12"]
[EventType "tourn"]
[EventCountry "KAZ"]
[SourceTitle "playchess.com"]
[Source "ChessBase"]
[SourceQuality "1"]
[TimeControl "40/5400+30:1800+30"]

1. d4 {[%emt 0:00:00]} Nf6 {[%emt 0:00:00]} 2. Nf3 {[%emt 0:00:00]} e6 {[%emt 0:00:06]} 3. e3 {[%emt 0:00:00]} b6 {[%emt 0:03:39]} 4. Bd3 {[%emt 0:00:01]} Bb7 {[%emt 0:00:18]} 5. O-O {[%emt 0:00:08]} c5 {[%emt 0:00:56]} 6. c4 {[%emt 0:00:15]} g6 {[%emt 0:07:25]} 7. Nc3 {[%emt 0:02:30]} Bg7 {[%emt 0:01:14]} 8. d5 {[%emt 0:05:31]} exd5 {[%emt 0:00:57]} 9. cxd5 {[%emt 0:00:22]} Nxd5 {[%emt 0:00:43]} 10. Nxd5 {[%emt 0:01:05]} Bxd5 {[%emt 0:00:12]} 11. Bxg6 {[%emt 0:02:15]} hxg6 {[%emt 0:00:43]} 12. Qxd5 {[%emt 0:00:08]} Nc6 {[%emt 0:00:28]} 13. e4 {[%emt 0:06:03]} Qe7 {[%emt 0:00:58]} 14. Bg5 {[%emt 0:06:44]} Qe6 {[%emt 0:03:04]} 15. Qd2 {[%emt 0:00:18]} Nd4 {[%emt 0:02:25]} 16. Nxd4 {[%emt 0:01:50]} Bxd4 {[%emt 0:00:48]} 17. a4 {[%emt 0:08:03]} Kf8 {[%emt 0:08:31]} 18. Rfe1 {[%emt 0:06:05]} Kg7 {[%emt 0:05:44]} 19. Be3 {[%emt 0:08:21]} Bxe3 {[%emt 0:06:53]} 20. Rxe3 {[%emt 0:00:35]} Qe5 {[%emt 0:05:10]} 21. h3 {[%emt 0:00:29]} Rad8 {[%emt 0:03:50]} 22. Rd1 {[%emt 0:01:16]} Rhe8 {[%emt 0:01:38]} 23. Qc2 {[%emt 0:03:26]} Re6 {[%emt 0:05:01]} 24. Rd5 {[%emt 0:05:20]} Qf6 {[%emt 0:00:23]} 25. Rf3 {[%emt 0:01:45]} Qe7 {[%emt 0:01:39]} 26. Qc3+ {[%emt 0:08:53]} Kg8 {[%emt 0:00:40]} 27. e5 {[%emt 0:02:40]} d6 {[%emt 0:03:27]} 28. Rfd3 {[%emt 0:00:36]} Rxe5 {[%emt 0:01:55]} 29. Qxe5 {[%emt 0:00:59]} dxe5 {[%emt 0:00:07]} 30. Rxd8+ {[%emt 0:00:04]} Kg7 {[%emt 0:00:05]} 31. R8d7 {[%emt 0:00:40]} Qg5 {[%emt 0:29:51]} 32. Rf3 {[%emt 0:01:03]} Qc1+ {[%emt 0:00:24]} 33. Kh2 {[%emt 0:00:05]} Qxb2 {[%emt 0:01:14]} 34. Rfxf7+ {[%emt 0:00:44]} Kg8 {[%emt 0:01:23]} 35. Rfe7 {[%emt 0:01:22]} Kf8 {[%emt 0:00:15]} 36. Rh7 {[%emt 0:00:32]} Kg8 {[%emt 0:00:14]} 37. Rdg7+ {[%emt 0:00:10]} 1-0

[Event "KAZ Cup Women 2019"]
[Site "Almaty"]
[Date "2019.12.14"]
[Round "4.2"]
[White "Nakhbayeva, Guliskhan"]
[Black "Ankudinova, Yelena"]
[Result "1-0"]
[ECO "D10"]
[WhiteElo "2296"]
[BlackElo "2093"]
[Annotator "NA RC"]
[PlyCount "33"]
[EventDate "2019.12.12"]
[EventType "tourn"]
[EventCountry "KAZ"]
[SourceTitle "playchess.com"]
[Source "ChessBase"]
[SourceQuality "1"]
[TimeControl "40/5400+30:1800+30"]

1. d4 {[%emt 0:00:00]} d5 {[%emt 0:00:17]} 2. c4 {[%emt 0:00:00]} c6 {[%emt 0:00:11]} 3. Nc3 {[%emt 0:00:05]} Nf6 {[%emt 0:00:09]} 4. e3 {[%emt 0:00:32]} g6 {[%emt 0:00:59]} 5. Nf3 {[%emt 0:00:24]} Bg7 {[%emt 0:00:11]} 6. Bd3 {[%emt 0:00:17]} O-O {[%emt 0:04:49]} 7. h3 {[%emt 0:00:37]} Bf5 {[%emt 0:01:04]} 8. Bxf5 {[%emt 0:03:01]} gxf5 {[%emt 0:00:02]} 9. Qc2 {[%emt 0:06:40]} dxc4 {[%emt 0:09:21]} 10. Qxf5 Na6 {[%emt 0:13:59]} 11. Ne5 {[%emt 0:10:02]} c5 $14 {[%emt 0:00:57]} 12. O-O {[%emt 0:03:57]} ({Of course not} 12. Nxc4 cxd4 13. exd4 Qxd4 $15) 12... cxd4 {[%emt 0:05:17]} 13. exd4 {[%emt 0:00:04]} e6 14. Qg5 Rc8 {[%emt 0:15:27]} 15. Qg3 {[%emt 0:16:07]} Qxd4 {[%emt 0:08:10]} 16. Rd1 {[%emt 0:12:27]} Nh5 {[%emt 0:01:45]} 17. Qxg7+ {[%emt 0:00:25]} 1-0

[Event "KAZ Cup Women 2019"]
[Site "Almaty"]
[Date "2019.12.14"]
[Round "4.3"]
[White "Gvetadze, Sofio"]
[Black "Kim, Kristina"]
[Result "1-0"]
[ECO "B06"]
[WhiteElo "2301"]
[BlackElo "1975"]
[Annotator "RC"]
[PlyCount "83"]
[EventDate "2019.12.12"]
[EventType "tourn"]
[EventCountry "KAZ"]
[SourceTitle "playchess.com"]
[Source "ChessBase"]
[SourceQuality "1"]
[TimeControl "40/5400+30:1800+30"]

1. e4 {[%emt 0:00:00]} g6 {[%emt 0:17:31]} 2. d4 {[%emt 0:00:00]} Bg7 {[%emt 0:00:06]} 3. Nc3 {[%emt 0:00:00]} c6 {[%emt 0:00:06]} 4. h3 {[%emt 0:00:01]} d5 {[%emt 0:00:08]} 5. Nf3 {[%emt 0:00:15]} Nh6 {[%emt 0:00:15]} 6. Bd3 {[%emt 0:01:46]} f6 {[%emt 0:00:28]} 7. Qe2 {[%emt 0:00:41]} O-O {[%emt 0:00:40]} 8. exd5 {[%emt 0:00:36]} cxd5 {[%emt 0:00:45]} 9. Nxd5 {[%emt 0:01:37]} Kh8 {[%emt 0:12:10]} 10. Ne3 {[%emt 0:02:58]} Nc6 {[%emt 0:04:55]} 11. c3 {[%emt 0:00:26]} e5 {[%emt 0:03:25]} 12. dxe5 {[%emt 0:01:07]} fxe5 {[%emt 0:00:06]} 13. Nd2 {[%emt 0:06:30]} Nf5 {[%emt 0:02:23]} 14. Ne4 {[%emt 0:00:34]} Nh4 {[%emt 0:04:07]} 15. Bd2 {[%emt 0:02:01]} Bh6 {[%emt 0:04:30]} 16. O-O-O {[%emt 0:09:23]} Qa5 {[%emt 0:02:39]} 17. Bc4 {[%emt 0:03:01]} a6 {[%emt 0:07:27]} 18. Nd6 {[%emt 0:03:02]} Qc7 {[%emt 0:09:17]} 19. Nxc8 {[%emt 0:02:01]} Raxc8 {[%emt 0:01:14]} 20. Kb1 {[%emt 0:03:50]} Bxe3 {[%emt 0:01:23]} 21. fxe3 {[%emt 0:11:12]} e4 {[%emt 0:01:43]} 22. Bd5 {[%emt 0:02:00]} Qe7 {[%emt 0:02:39]} 23. c4 {[%emt 0:01:10]} h5 {[%emt 0:00:57]} 24. Rhf1 {[%emt 0:05:00]} Nf5 {[%emt 0:04:18]} 25. Qe1 {[%emt 0:00:44]} h4 {[%emt 0:01:27]} 26. Qe2 {[%emt 0:11:03]} Ng3 {[%emt 0:00:07]} 27. Rxf8+ {[%emt 0:00:05]} Rxf8 {[%emt 0:00:05]} 28. Qg4 {[%emt 0:00:18]} Kh7 {[%emt 0:00:27]} 29. Bc3 {[%emt 0:02:02]} Rf5 {[%emt 0:01:20]} 30. a3 {[%emt 0:03:57]} g5 {[%emt 0:04:27]} 31. Bxc6 {[%emt 0:02:19]} bxc6 {[%emt 0:00:05]} 32. Be1 {[%emt 0:00:14]} Kg6 {[%emt 0:04:49]} 33. Bxg3 {[%emt 0:00:19]} hxg3 {[%emt 0:00:06]} 34. Qxg3 {[%emt 0:00:07]} Qc5 {[%emt 0:00:11]} 35. Rd4 {[%emt 0:10:40]} Re5 {[%emt 0:02:41]} 36. Qg4 {[%emt 0:01:06]} Qe7 {[%emt 0:00:41]} 37. Qc8 {[%emt 0:00:56]} Qe6 {[%emt 0:01:02]} 38. Qd8 {[%emt 0:00:27]} Kh5 {[%emt 0:00:46]} 39. Rd6 {[%emt 0:02:33]} Qe8 {[%emt 0:01:12]} 40. Qf6 {[%emt 0:00:11]} Kh4 {[%emt 0:00:39]} 41. Qf2+ {[%emt 0:30:06]} Kh5 {[%emt 0:30:08]} 42. g4# {[%emt 0:00:05]} 1-0

[Event "KAZ Cup Women 2019"]
[Site "Almaty"]
[Date "2019.12.14"]
[Round "4.4"]
[White "Tomilova, Elena"]
[Black "Balabayeva, Xeniya"]
[Result "1/2-1/2"]
[ECO "A46"]
[WhiteElo "2341"]
[BlackElo "2119"]
[Annotator "RC"]
[PlyCount "80"]
[EventDate "2019.12.12"]
[EventType "tourn"]
[EventCountry "KAZ"]
[SourceTitle "playchess.com"]
[Source "ChessBase"]
[SourceQuality "1"]
[TimeControl "40/5400+30:1800+30"]

1. d4 {[%emt 0:00:00]} e6 {[%emt 0:02:44]} 2. Nf3 {[%emt 0:00:00]} Nf6 {[%emt 0:00:38]} 3. e3 {[%emt 0:00:06]} b6 {[%emt 0:02:37]} 4. Bd3 {[%emt 0:00:13]} Bb7 {[%emt 0:00:28]} 5. O-O {[%emt 0:00:11]} c5 {[%emt 0:03:03]} 6. c4 {[%emt 0:00:18]} Nc6 {[%emt 0:01:27]} 7. Nc3 {[%emt 0:05:49]} d5 {[%emt 0:04:17]} 8. cxd5 {[%emt 0:02:05]} Nxd5 {[%emt 0:01:46]} 9. Nxd5 {[%emt 0:06:49]} Qxd5 {[%emt 0:03:22]} 10. e4 {[%emt 0:01:16]} Qd7 {[%emt 0:04:18]} 11. d5 {[%emt 0:02:38]} exd5 {[%emt 0:11:19]} 12. exd5 {[%emt 0:02:54]} Qxd5 {[%emt 0:03:13]} 13. Re1+ {[%emt 0:02:50]} Be7 {[%emt 0:00:42]} 14. Qe2 {[%emt 0:16:16]} O-O {[%emt 0:12:46]} 15. Be4 {[%emt 0:02:58]} Qh5 {[%emt 0:06:55]} 16. Bf4 {[%emt 0:06:30]} Bf6 {[%emt 0:07:30]} 17. Rad1 {[%emt 0:02:04]} Rad8 {[%emt 0:07:54]} 18. Rxd8 {[%emt 0:06:40]} Nxd8 {[%emt 0:05:38]} 19. Bd6 {[%emt 0:03:55]} Re8 {[%emt 0:01:20]} 20. Bxh7+ {[%emt 0:08:54]} Kxh7 {[%emt 0:00:11]} 21. Qxe8 {[%emt 0:01:30]} Bxf3 {[%emt 0:02:19]} 22. gxf3 {[%emt 0:00:09]} Ne6 {[%emt 0:00:18]} 23. Qa8 {[%emt 0:08:08]} Ng5 {[%emt 0:01:30]} 24. Re8 {[%emt 0:08:10]} Nxf3+ {[%emt 0:02:31]} 25. Kh1 {[%emt 0:00:16]} g6 {[%emt 0:01:21]} 26. Qb7 {[%emt 0:01:47]} Ng5 {[%emt 0:02:40]} 27. Re1 {[%emt 0:03:18]} Kg7 {[%emt 0:05:10]} 28. Qa8 {[%emt 0:00:23]} Bxb2 {[%emt 0:03:17]} 29. f4 {[%emt 0:02:27]} Nf3 {[%emt 0:01:03]} 30. Re2 {[%emt 0:01:45]} Nh4 {[%emt 0:01:53]} 31. Qf8+ {[%emt 0:01:18]} Kh7 {[%emt 0:00:17]} 32. Qxf7+ {[%emt 0:00:14]} Bg7 {[%emt 0:00:09]} 33. Bf8 {[%emt 0:02:08]} Qf3+ {[%emt 0:00:28]} 34. Kg1 {[%emt 0:00:02]} Nf5 {[%emt 0:00:14]} 35. Bxg7 {[%emt 0:01:29]} Qxe2 {[%emt 0:01:02]} 36. Bf8+ {[%emt 0:00:38]} Kh8 {[%emt 0:00:20]} 37. Qf6+ {[%emt 0:00:28]} Kh7 {[%emt 0:00:19]} 38. Qf7+ {[%emt 0:00:01]} Kh8 {[%emt 0:00:06]} 39. Qf6+ {[%emt 0:00:03]} Kh7 {[%emt 0:00:05]} 40. Qf7+ {[%emt 0:00:12]} Kh8 {[%emt 0:00:06]} 1/2-1/2

[Event "KAZ Cup Women 2019"]
[Site "Almaty"]
[Date "2019.12.14"]
[Round "4.5"]
[White "Davletbayeva, Madina"]
[Black "Khomeriki, Nino"]
[Result "1-0"]
[ECO "B31"]
[WhiteElo "2238"]
[BlackElo "2355"]
[Annotator "ChessBase"]
[PlyCount "135"]
[EventDate "2019.12.12"]
[EventType "tourn"]
[EventCountry "KAZ"]
[SourceTitle "playchess.com"]
[Source "ChessBase"]
[SourceQuality "1"]
[TimeControl "40/5400+30:1800+30"]

1. e4 {[%emt 0:00:00]} c5 {[%emt 0:00:00]} 2. Nf3 {[%emt 0:00:18]} Nc6 {[%emt 0:00:00]} 3. Bb5 {[%emt 0:03:43]} g6 {[%emt 0:00:10]} 4. Bxc6 {[%emt 0:00:10]} bxc6 {[%emt 0:00:14]} 5. O-O {[%emt 0:01:08]} Bg7 {[%emt 0:00:13]} 6. Re1 {[%emt 0:01:24]} Qc7 {[%emt 0:00:24]} 7. c3 {[%emt 0:00:53]} d6 {[%emt 0:00:39]} 8. h3 {[%emt 0:00:40]} Nf6 {[%emt 0:00:48]} 9. d4 {[%emt 0:02:54]} cxd4 {[%emt 0:00:18]} 10. cxd4 {[%emt 0:00:05]} O-O {[%emt 0:00:28]} 11. Nc3 {[%emt 0:02:14]} c5 {[%emt 0:01:55]} 12. e5 {[%emt 0:12:06]} dxe5 {[%emt 0:02:26]} 13. dxe5 {[%emt 0:01:05]} Rd8 {[%emt 0:08:26]} 14. Qa4 {[%emt 0:02:38]} Nh5 {[%emt 0:00:30]} 15. Be3 {[%emt 0:06:06]} Bb7 {[%emt 0:03:46]} 16. Ne4 {[%emt 0:03:17]} Bxe5 {[%emt 0:18:13]} 17. Nxe5 {[%emt 0:04:36]} Qxe5 {[%emt 0:00:08]} 18. Nxc5 {[%emt 0:02:09]} Bd5 {[%emt 0:00:16]} 19. b3 {[%emt 0:03:35]} Qf6 {[%emt 0:04:13]} 20. Rad1 {[%emt 0:04:34]} Ng7 {[%emt 0:00:29]} 21. Ne4 {[%emt 0:09:33]} Qe5 {[%emt 0:03:53]} 22. Bd4 {[%emt 0:03:36]} Qc7 {[%emt 0:02:22]} 23. Rc1 {[%emt 0:04:09]} Qf4 {[%emt 0:02:02]} 24. Bxg7 {[%emt 0:01:54]} Kxg7 {[%emt 0:00:25]} 25. Nc3 {[%emt 0:00:38]} Qxa4 {[%emt 0:03:23]} 26. Nxa4 {[%emt 0:00:30]} Rd7 {[%emt 0:03:30]} 27. Nc5 {[%emt 0:00:27]} Rd6 {[%emt 0:01:35]} 28. Rxe7 {[%emt 0:00:38]} Kf6 {[%emt 0:00:06]} 29. Rc7 {[%emt 0:02:27]} a6 {[%emt 0:05:54]} 30. Rd1 {[%emt 0:02:14]} Rad8 {[%emt 0:01:10]} 31. Ra7 {[%emt 0:01:21]} Ke5 {[%emt 0:00:49]} 32. Rxa6 {[%emt 0:01:19]} Rxa6 {[%emt 0:00:14]} 33. Nxa6 {[%emt 0:00:05]} Rc8 {[%emt 0:00:01]} 34. Nb4 {[%emt 0:01:16]} Be6 {[%emt 0:00:05]} 35. Kf1 {[%emt 0:01:48]} g5 {[%emt 0:00:17]} 36. Ke2 {[%emt 0:00:26]} h5 {[%emt 0:00:02]} 37. f3 {[%emt 0:02:49]} f5 {[%emt 0:00:42]} 38. Rd2 {[%emt 0:03:24]} h4 {[%emt 0:02:05]} 39. Rc2 {[%emt 0:00:29]} Re8 {[%emt 0:00:01]} 40. Kf2 {[%emt 0:01:04]} g4 {[%emt 0:01:44]} 41. Re2+ {[%emt 0:36:20]} Kd6 {[%emt 0:30:11]} 42. Rd2+ {[%emt 0:00:44]} Ke5 {[%emt 0:02:37]} 43. Nd3+ {[%emt 0:07:11]} Kf6 {[%emt 0:00:06]} 44. Re2 {[%emt 0:00:39]} Rc8 {[%emt 0:03:20]} 45. Nf4 {[%emt 0:02:34]} Bf7 {[%emt 0:01:13]} 46. Nd3 {[%emt 0:00:00]} Rc3 {[%emt 0:00:00]} 47. Ke3 {[%emt 0:00:00]} gxh3 {[%emt 0:00:00]} 48. gxh3 {[%emt 0:00:00]} Bh5 {[%emt 0:00:00]} 49. Kd2 {[%emt 0:00:00]} Rc8 {[%emt 0:00:00]} 50. Re3 {[%emt 0:00:00]} Bf7 {[%emt 0:00:00]} 51. f4 {[%emt 0:00:00]} Bd5 {[%emt 0:00:00]} 52. Ne5 {[%emt 0:00:00]} Be4 {[%emt 0:00:00]} 53. Nc4 {[%emt 0:00:00]} Rg8 {[%emt 0:00:00]} 54. a4 {[%emt 0:00:00]} Rg2+ {[%emt 0:00:00]} 55. Kc3 {[%emt 0:00:00]} Rf2 {[%emt 0:00:00]} 56. a5 {[%emt 0:00:00]} Rxf4 {[%emt 0:00:00]} 57. a6 {[%emt 0:00:00]} Rf1 {[%emt 0:00:00]} 58. b4 {[%emt 0:00:00]} Bg2 {[%emt 0:00:00]} 59. Re2 {[%emt 0:00:00]} Rc1+ {[%emt 0:00:00]} 60. Rc2 {[%emt 0:00:00]} Rxc2+ {[%emt 0:00:00]} 61. Kxc2 {[%emt 0:00:00]} Bxh3 {[%emt 0:00:00]} 62. Ne3 {[%emt 0:00:00]} Bg2 {[%emt 0:00:00]} 63. Nxg2 {[%emt 0:00:00]} h3 {[%emt 0:00:00]} 64. Nf4 {[%emt 0:00:00]} h2 {[%emt 0:00:00]} 65. Nh5+ {[%emt 0:00:00]} Kg5 {[%emt 0:00:00]} 66. Ng3 {[%emt 0:00:00]} f4 {[%emt 0:00:00]} 67. Nh1 {[%emt 0:00:00]} f3 {[%emt 0:00:00]} 68. a7 {[%emt 0:00:00]} 1-0